{"text_format":"1","workbook":"xlsx","n_sheets":4,"sheets":["Titelblad","Toelichting","Projectgegevens","Invulblad"],"not_rendered":{"charts":1,"images":5,"macros":1,"external_links":0,"defined_names":1,"comments":0,"pivot_tables":0},"unopened":[],"bounds":{"document_bytes":16777216,"sheet_cells":100000,"rows_first":2000,"rows_last":500,"rows_between":2000,"halvings":0,"cell_chars":16384,"cell_head_chars":4096},"cells_cut":0,"cells_raw":0,"read":"whole","date_system":"1900"}

{"sheet":"Titelblad","index":0,"n_rows":0,"n_cols":0,"rows_kept":0,"cut":false,"hidden":false,"merged":[]}

{"sheet":"Toelichting","index":1,"n_rows":22,"n_cols":3,"rows_kept":22,"cut":false,"hidden":false,"merged":[[2,1,4,13],[21,1,23,12],[6,1,8,12],[9,1,9,12],[13,8,13,10],[16,2,16,12],[18,2,18,12]]}
[null,"Ambitieweb"]
[null,"Wat is het Ambitieweb?"]
[null,"Het Ambitieweb is een krachtige visualisatietool, dat in één oogopslag de duurzaamheidsambities laat zien. Een tool waarmee in een groepsproces een gezamenlijk beeld van duurzaamheid én draagvlak voor mogelijke maatregelen ontstaat."]
[]
[]
[null,"Hoe gebruikt u deze tool?"]
[null,"Deze tool kent verschillende tabbladen met naar de inhoud verwijzende titels. Op het invulblad vindt u bovenin een instructiebalk met daarin drie stappen. Middels deze stappen kunt u thema's (de)selecteren, ambities scoren en het Ambitieweb aanpassen. Meer over het gebruiken van het Ambitieweb is te lezen op de website van PIANOo: "]
[]
[]
[null,"https://www.pianoo.nl/nl/document/18571/handreiking-ambitieweb  "]
[]
[]
[]
[]
[null,"Het Ambitieweb kent vier ambitieniveaus, welke zijn dat?"]
[null,"0.","Geen duurzaamheidsambities of niet relevant. "]
[null,"1.","Basis: Uitsluiten van niet-duurzame producten, diensten en werken."]
[null,"2.","Significant: Aanmoedigen van duurzame producten, diensten en werken om significante duurzaamheidswinst te maken."]
[null,"3. ","Ambitieus: (Zoveel mogelijk) beperken van negatieve effecten of leveren van een positieve bijdrage op het thema. Waar nodig door stimuleren van nieuwe oplossingen en innovatie."]
[]
[null,"Kan ik het Ambitieweb ook afdrukken?"]
[null,"Op het invulblad zit in de instructiebalk ook een knop om een PDF te maken welke automatisch op je bureaublad wordt opgeslagen. Ook kunt u met de muisfuncties de afbeelding printen of kopieren en plakken in elke willekeurige applicatie (zoals Word of Powerpoint)."]

{"sheet":"Projectgegevens","index":2,"n_rows":21,"n_cols":9,"rows_kept":21,"cut":false,"hidden":false,"merged":[[7,1,7,2],[12,1,18,12],[9,1,9,2],[11,1,11,2],[2,1,2,2],[3,1,3,2],[4,1,4,2],[5,1,5,2],[6,1,6,2]]}
[null,"Projectgegevens"]
[]
[null,"Gegegevens "]
[null,"Naam organisatie(onderdeel) :",null,null,null,null,"Kleurenlegenda van de cellen"]
[null,"Projecttitel :",null,null,null,null,null,null,"Zelf in te vullen cellen"]
[null,"Contactpersoon :",null,null,null,null,null,null,"Optioneel in te vullen"]
[null,"Telefoonnummer :"]
[null,"E-mail :"]
[]
[null,"Datum van Ambitiewebsessie :"]
[]
[null,"Opmerkingen"]
[]
[]
[]
[]
[]
[]
[]
[]
[null,{"$f":"\" Project: \"&D5&\"      Datum: \"&D10","v":" Project:       Datum: "}]

{"sheet":"Invulblad","index":3,"n_rows":16,"n_cols":6,"rows_kept":16,"cut":false,"hidden":false,"merged":[]}
[]
[null,null,"Hoe gebruikt u het ambitieweb?"]
[]
[null,"Nr","Thema's","Toelichting","Gewenste ambitie","0 = Geen ambitie\n1 = Basis \n2 = Significant\n3 = Ambitieus"]
[null,1,"Milieu en Klimaat","Dit thema gaat over voorkomen van een negatieve impact op milieu en klimaat of over het leveren van een positieve bijdrage. ","< score >",{"$f":"IF(E5=0,\"geen duurzaamheidsambitie\",IF(E5=1,\"Basis\",IF(E5=2,\"Significant\",IF(E5=3,\"Ambitieus\",\"vul links het getal 0, 1, 2 of 3 in\"))))","v":"vul links het getal 0, 1, 2 of 3 in"}]
[null,{"$f":"B5+1","v":2},"Circulair en Biobased","Het gaat binnen dit thema om; materialen en grondstoffen, hoogwaardig hergebruik en biobased materiaalgebruik. ","< score >","vul links het getal 0, 1, 2 of 3 in"]
[null,{"$f":"B6+1","v":3},"Social Return","Bij social return gaat het over arbeidsparticipatie en sociaal ondernemerschap.","< score >","vul links het getal 0, 1, 2 of 3 in"]
[null,4,"Internationale sociale voorwaarden","Dit thema richt zich op het bevorderen van de internationale arbeidsnormen (tegen gaan van dwangarbeid, kinderarbeid en discriminatie).","< score >","vul links het getal 0, 1, 2 of 3 in"]
[null,5,"MKB","Dit thema gaat over het bevorderen van de inzet van het midden- en kleinbedrijf (MKB) en lokale ondernemers.","< score >","vul links het getal 0, 1, 2 of 3 in"]
[null,6,"< aanvullend thema >"," ","< score >","vul links het getal 0, 1, 2 of 3 in"]
[null,7,"< aanvullend thema >"," ","< score >","vul links het getal 0, 1, 2 of 3 in"]
[null,8,"< aanvullend thema >"," ","< score >","vul links het getal 0, 1, 2 of 3 in"]
[null,9,"< aanvullend thema >"," ","< score >","vul links het getal 0, 1, 2 of 3 in"]
[null,{"$f":"B13+1","v":10},"< aanvullend thema >"," ","< score >","vul links het getal 0, 1, 2 of 3 in"]
[null,11,"< aanvullend thema >"," ","< score >","vul links het getal 0, 1, 2 of 3 in"]
[null,12,"< aanvullend thema >"," ","< score >","vul links het getal 0, 1, 2 of 3 in"]